[Event "13 ème Rapide Isle 2019"]
[Site "Isle, France"]
[Date "????.??.??"]
[Round "5.3"]
[White "Selebran, Henri"]
[Black "Larand, Manuel"]
[Result "1-0"]
[TimeControl "15'+5''"]
[WhiteElo "2109"]
[BlackElo "1921"]

1. c4 {[%clk 00:15:06]} {[%emt 00:00:03]} Nf6 {[%clk 00:14:51]} {[%emt
00:00:20]} 2. g3 {[%clk 00:15:08]} {[%emt 00:00:04]} g6 {[%clk 00:14:44]}
{[%emt 00:00:13]} 3. Bg2 {[%clk 00:15:10]} {[%emt 00:00:03]} Bg7 {[%clk
00:14:47]} {[%emt 00:00:02]} 4. Nc3 {[%clk 00:15:12]} {[%emt 00:00:02]} c5
{[%clk 00:14:51]} {[%emt 00:00:02]} 5. a3 {[%clk 00:15:11]} {[%emt 00:00:06]}
Nc6 {[%clk 00:14:33]} {[%emt 00:00:23]} 6. Nh3 {[%clk 00:14:43]} {[%emt
00:00:32]} Rb8 {[%clk 00:14:25]} {[%emt 00:00:14]} 7. Rb1 {[%clk 00:14:25]}
{[%emt 00:00:22]} e5 {[%clk 00:13:30]} {[%emt 00:01:01]} 8. b4 {[%clk
00:14:07]} {[%emt 00:00:22]} d6 {[%clk 00:13:15]} {[%emt 00:00:20]} 9. O-O
{[%clk 00:13:56]} {[%emt 00:00:15]} Bd7 {[%clk 00:13:09]} {[%emt 00:00:12]} 10.
bxc5 {[%clk 00:12:40]} {[%emt 00:01:21]} dxc5 {[%clk 00:13:05]} {[%emt
00:00:09]} 11. f4 {[%clk 00:11:51]} {[%emt 00:00:53]} O-O {[%clk 00:12:13]}
{[%emt 00:00:57]} 12. fxe5 {[%clk 00:11:22]} {[%emt 00:00:34]} Ng4 {[%clk
00:11:17]} {[%emt 00:01:02]} 13. Ne4 {[%clk 00:10:37]} {[%emt 00:00:49]} Qe7
{[%clk 00:10:12]} {[%emt 00:01:11]} 14. Nf4 {[%clk 00:08:51]} {[%emt 00:01:49]}
Bf5 {[%clk 00:09:03]} {[%emt 00:01:15]} 15. Nd5 {[%clk 00:07:30]} {[%emt
00:01:26]} Qd8 {[%clk 00:08:13]} {[%emt 00:00:56]} 16. d3 {[%clk 00:06:41]}
{[%emt 00:00:53]} Ngxe5 {[%clk 00:07:08]} {[%emt 00:01:11]} 17. Nxc5 {[%clk
00:05:46]} {[%emt 00:00:59]} b6 {[%clk 00:05:20]} {[%emt 00:01:54]} 18. Na6
{[%clk 00:05:09]} {[%emt 00:00:41]} Rc8 {[%clk 00:05:21]} {[%emt 00:00:04]} 19.
Nab4 {[%clk 00:04:51]} {[%emt 00:00:22]} Nd4 {[%clk 00:05:05]} {[%emt
00:00:22]} 20. Bb2 {[%clk 00:04:29]} {[%emt 00:00:26]} Nd7 {[%clk 00:03:22]}
{[%emt 00:01:49]} 21. Nc2 {[%clk 00:03:58]} {[%emt 00:00:35]} Nc6 {[%clk
00:03:03]} {[%emt 00:00:25]} 22. Bxg7 {[%clk 00:03:36]} {[%emt 00:00:26]} Kxg7
{[%clk 00:03:07]} {[%emt 00:00:02]} 23. Nce3 {[%clk 00:03:16]} {[%emt
00:00:24]} Be6 {[%clk 00:03:11]} {[%emt 00:00:01]} 24. Nf4 {[%clk 00:03:12]}
{[%emt 00:00:08]} Nde5 {[%clk 00:02:57]} {[%emt 00:00:19]} 25. Nxe6+ {[%clk
00:02:57]} {[%emt 00:00:20]} fxe6 {[%clk 00:03:01]} {[%emt 00:00:01]} 26. Qd2
{[%clk 00:02:44]} {[%emt 00:00:17]} Qd4 {[%clk 00:03:05]} {[%emt 00:00:02]} 27.
Kh1 {[%clk 00:02:41]} {[%emt 00:00:08]} Ne7 {[%clk 00:02:50]} {[%emt 00:00:21]}
28. Nc2 {[%clk 00:02:23]} {[%emt 00:00:22]} Qd6 {[%clk 00:02:36]} {[%emt
00:00:19]} 29. Qb4 {[%clk 00:02:01]} {[%emt 00:00:27]} Qd7 {[%clk 00:01:56]}
{[%emt 00:00:45]} 30. Qb2 {[%clk 00:01:46]} {[%emt 00:00:19]} Qd6 {[%clk
00:01:53]} {[%emt 00:00:10]} 31. Ne3 {[%clk 00:01:34]} {[%emt 00:00:17]} Kg8
{[%clk 00:01:53]} {[%emt 00:00:05]} 32. Rxf8+ {[%clk 00:01:13]} {[%emt
00:00:25]} Rxf8 {[%clk 00:01:58]} 33. Rf1 {[%clk 00:01:15]} {[%emt 00:00:04]}
Rc8 {[%clk 00:01:47]} {[%emt 00:00:17]} 34. Nc2 {[%clk 00:01:10]} {[%emt
00:00:09]} N7c6 {[%emt 00:00:22]} 35. Qc1 {[%clk 00:01:03]} {[%emt 00:00:11]}
Nd4 {[%clk 00:01:05]} {[%emt 00:00:32]} 36. Nxd4 {[%clk 00:01:01]} {[%emt
00:00:06]} Qxd4 {[%emt 00:00:03]} 37. Qf4 {[%clk 00:00:58]} {[%emt 00:00:06]}
Qd6 {[%clk 00:00:48]} {[%emt 00:00:27]} 38. Bh3 {[%clk 00:00:47]} {[%emt
00:00:15]} Rc7 {[%clk 00:00:49]} {[%emt 00:00:04]} 39. Qf6 {[%clk 00:00:38]}
{[%emt 00:00:14]} 1-0

[Event "13 ème Rapide Isle 2019"]
[Site "Isle, France"]
[Date "????.??.??"]
[Round "5.4"]
[White "Mace, Emmanuel"]
[Black "Saada, Julien"]
[Result "0-1"]
[TimeControl "15'+5''"]
[WhiteElo "1716"]
[BlackElo "2258"]

1. e4 {[%clk 00:15:09]} c6 {[%clk 00:15:09]} {[%emt 00:00:02]} 2. d4 {[%clk
00:15:10]} {[%emt 00:00:03]} d5 {[%clk 00:15:13]} {[%emt 00:00:01]} 3. Nc3
{[%clk 00:15:14]} {[%emt 00:00:01]} dxe4 {[%clk 00:15:12]} {[%emt 00:00:06]} 4.
Nxe4 {[%clk 00:15:17]} {[%emt 00:00:01]} Bf5 {[%clk 00:15:15]} {[%emt
00:00:02]} 5. Ng3 {[%clk 00:15:21]} {[%emt 00:00:01]} Bg6 {[%clk 00:15:19]} 6.
h4 {[%clk 00:15:25]} {[%emt 00:00:01]} h6 {[%clk 00:15:23]} 7. h5 {[%clk
00:15:29]} {[%emt 00:00:01]} Bh7 {[%clk 00:15:27]} 8. Nf3 {[%clk 00:15:33]}
{[%emt 00:00:02]} Nd7 {[%clk 00:15:29]} {[%emt 00:00:02]} 9. Bd3 {[%clk
00:15:35]} {[%emt 00:00:03]} Bxd3 {[%clk 00:15:33]} {[%emt 00:00:02]} 10. Qxd3
{[%clk 00:15:38]} {[%emt 00:00:02]} Qc7 {[%clk 00:15:32]} {[%emt 00:00:06]} 11.
Bd2 {[%clk 00:15:37]} {[%emt 00:00:06]} Ngf6 {[%clk 00:15:35]} {[%emt
00:00:02]} 12. O-O-O {[%clk 00:15:16]} {[%emt 00:00:26]} e6 {[%clk 00:15:38]}
{[%emt 00:00:02]} 13. Ne4 {[%clk 00:15:19]} {[%emt 00:00:02]} O-O-O {[%clk
00:15:39]} {[%emt 00:00:04]} 14. Nxf6 {[%clk 00:15:15]} {[%emt 00:00:09]} Nxf6
{[%clk 00:15:29]} {[%emt 00:00:14]} 15. Qe2 {[%clk 00:15:19]} {[%emt 00:00:01]}
Bd6 {[%clk 00:15:05]} {[%emt 00:00:29]} 16. Ne5 {[%clk 00:15:08]} {[%emt
00:00:16]} c5 {[%clk 00:15:04]} {[%emt 00:00:06]} 17. Bf4 {[%clk 00:14:23]}
{[%emt 00:00:50]} Nd5 {[%clk 00:14:37]} {[%emt 00:00:32]} 18. Bg3 {[%clk
00:14:17]} {[%emt 00:00:10]} c4 {[%clk 00:12:47]} {[%emt 00:01:55]} 19. c3
{[%clk 00:14:03]} {[%emt 00:00:18]} Rhe8 {[%clk 00:12:33]} {[%emt 00:00:20]} 20.
Qxc4 {[%clk 00:13:12]} {[%emt 00:00:56]} Bxe5 {[%clk 00:12:34]} {[%emt
00:00:04]} 21. Qxc7+ {[%clk 00:12:52]} {[%emt 00:00:26]} Bxc7 {[%clk 00:12:37]}
{[%emt 00:00:02]} 22. Bh4 {[%clk 00:12:43]} {[%emt 00:00:14]} f6 {[%clk
00:12:17]} {[%emt 00:00:24]} 23. g3 {[%clk 00:11:54]} {[%emt 00:00:54]} b5
{[%clk 00:12:11]} {[%emt 00:00:11]} 24. Rhe1 {[%clk 00:11:48]} {[%emt
00:00:11]} e5 {[%clk 00:11:55]} {[%emt 00:00:21]} 25. dxe5 {[%clk 00:11:38]}
{[%emt 00:00:14]} Rxe5 {[%clk 00:11:55]} {[%emt 00:00:04]} 26. Rxe5 {[%clk
00:11:25]} {[%emt 00:00:19]} Bxe5 {[%clk 00:11:58]} {[%emt 00:00:02]} 27. f4
{[%clk 00:11:11]} {[%emt 00:00:19]} Bc7 {[%clk 00:11:58]} {[%emt 00:00:04]} 28.
Re1 {[%clk 00:10:50]} {[%emt 00:00:26]} Kd7 {[%clk 00:11:52]} {[%emt 00:00:10]}
29. f5 {[%clk 00:10:31]} {[%emt 00:00:25]} Re8 {[%clk 00:11:50]} {[%emt
00:00:06]} 30. Rd1 {[%clk 00:10:06]} {[%emt 00:00:31]} Kc6 {[%clk 00:11:54]}
{[%emt 00:00:02]} 31. g4 {[%clk 00:09:37]} {[%emt 00:00:33]} Re4 {[%clk
00:11:53]} {[%emt 00:00:05]} 32. Bf2 {[%clk 00:09:30]} {[%emt 00:00:13]} Bf4+
{[%clk 00:11:29]} {[%emt 00:00:29]} 33. Kb1 {[%clk 00:09:27]} {[%emt 00:00:08]}
Be3 {[%clk 00:11:28]} {[%emt 00:00:04]} 34. Bxe3 {[%clk 00:09:22]} {[%emt
00:00:11]} Nxe3 {[%clk 00:11:28]} {[%emt 00:00:05]} 35. Re1 {[%clk 00:09:10]}
{[%emt 00:00:18]} Kd5 {[%clk 00:11:31]} {[%emt 00:00:02]} 36. b3 {[%clk
00:08:38]} {[%emt 00:00:38]} Ke5 {[%emt 00:00:25]} 0-1

[Event "13 ème Rapide Isle 2019"]
[Site "Isle, France"]
[Date "????.??.??"]
[Round "6.1"]
[White "Girel, Joseph"]
[Black "Selebran, Henri"]
[Result "1-0"]
[TimeControl "15'+5''"]
[WhiteElo "2146"]
[BlackElo "2109"]

1. e4 {[%clk 00:15:04]} {[%emt 00:00:05]} e5 {[%clk 00:15:08]} {[%emt
00:00:02]} 2. Nf3 {[%clk 00:15:07]} {[%emt 00:00:02]} Nc6 {[%clk 00:15:11]}
{[%emt 00:00:02]} 3. Bb5 {[%clk 00:15:10]} {[%emt 00:00:03]} a6 {[%clk
00:15:15]} {[%emt 00:00:01]} 4. Bxc6 {[%clk 00:15:13]} {[%emt 00:00:02]} dxc6
{[%clk 00:15:18]} {[%emt 00:00:02]} 5. Nc3 {[%clk 00:15:15]} {[%emt 00:00:02]}
Bd6 {[%clk 00:13:45]} {[%emt 00:01:38]} 6. d3 {[%clk 00:15:12]} {[%emt
00:00:09]} Ne7 {[%clk 00:12:49]} {[%emt 00:01:01]} 7. Be3 {[%clk 00:15:12]}
{[%emt 00:00:05]} c5 {[%clk 00:12:20]} {[%emt 00:00:33]} 8. Ne2 {[%clk
00:15:13]} {[%emt 00:00:04]} f6 {[%clk 00:11:48]} {[%emt 00:00:37]} 9. O-O
{[%clk 00:15:02]} {[%emt 00:00:16]} Bg4 {[%clk 00:11:16]} {[%emt 00:00:37]} 10.
Nd2 {[%clk 00:15:05]} {[%emt 00:00:03]} Qd7 {[%clk 00:10:59]} {[%emt 00:00:22]}
11. f3 {[%clk 00:15:05]} {[%emt 00:00:04]} Be6 {[%clk 00:10:52]} {[%emt
00:00:11]} 12. Kh1 {[%clk 00:14:01]} {[%emt 00:01:10]} g5 {[%clk 00:10:16]}
{[%emt 00:00:40]} 13. Nc4 {[%clk 00:13:01]} {[%emt 00:01:06]} h5 {[%clk
00:09:49]} {[%emt 00:00:31]} 14. c3 {[%clk 00:12:42]} {[%emt 00:00:26]} O-O-O
{[%clk 00:09:20]} {[%emt 00:00:33]} 15. Qc2 {[%clk 00:12:12]} {[%emt 00:00:35]}
Rdg8 {[%clk 00:08:44]} {[%emt 00:00:40]} 16. Nxd6+ {[%clk 00:12:07]} {[%emt
00:00:11]} Qxd6 {[%clk 00:08:21]} {[%emt 00:00:27]} 17. d4 {[%clk 00:12:09]}
{[%emt 00:00:04]} f5 {[%clk 00:06:58]} {[%emt 00:01:28]} 18. d5 {[%clk
00:10:34]} {[%emt 00:01:41]} Bd7 {[%clk 00:06:45]} {[%emt 00:00:17]} 19. b4
{[%clk 00:10:38]} {[%emt 00:00:02]} c4 {[%clk 00:05:51]} {[%emt 00:00:59]} 20.
Bc5 {[%clk 00:10:29]} {[%emt 00:00:14]} Qf6 {[%clk 00:05:46]} {[%emt 00:00:09]}
21. Rad1 {[%clk 00:10:14]} {[%emt 00:00:21]} Ng6 {[%clk 00:05:15]} {[%emt
00:00:35]} 22. d6 {[%clk 00:09:39]} {[%emt 00:00:41]} g4 {[%clk 00:03:17]}
{[%emt 00:02:03]} 23. f4 {[%clk 00:09:29]} {[%emt 00:00:16]} Bc6 {[%clk
00:01:42]} {[%emt 00:01:40]} 24. fxe5 {[%clk 00:08:47]} {[%emt 00:00:47]} Qxe5
{[%clk 00:01:25]} {[%emt 00:00:22]} 25. Rxf5 {[%clk 00:07:05]} {[%emt
00:01:48]} Qxe4 {[%clk 00:01:06]} {[%emt 00:00:23]} 26. d7+ {[%clk 00:07:05]}
{[%emt 00:00:06]} Kd8 {[%clk 00:00:58]} {[%emt 00:00:12]} 27. Qxe4 {[%clk
00:06:37]} {[%emt 00:00:33]} Bxe4 {[%clk 00:01:01]} {[%emt 00:00:02]} 28. Rf7
{[%clk 00:06:38]} {[%emt 00:00:04]} Rf8 {[%clk 00:00:08]} {[%emt 00:00:58]} 29.
Nf4 {[%clk 00:05:52]} {[%emt 00:00:50]} 1-0

[Event "13 ème Rapide Isle 2019"]
[Site "Isle, France"]
[Date "????.??.??"]
[Round "6.2"]
[White "Chamaillard, Sylvain"]
[Black "Fritschy, Frits"]
[Result "1-0"]
[TimeControl "15'+5''"]
[WhiteElo "2033"]
[BlackElo "2074"]

1. e4 {[%clk 00:15:00]} {[%emt 00:00:11]} e6 {[%clk 00:15:13]} {[%emt
00:00:01]} 2. e5 {[%clk 00:15:03]} {[%emt 00:00:02]} d5 {[%clk 00:15:09]}
{[%emt 00:00:09]} 3. exd6 {[%clk 00:15:07]} {[%emt 00:00:02]} cxd6 {[%clk
00:15:10]} {[%emt 00:00:04]} 4. d4 {[%clk 00:15:09]} {[%emt 00:00:03]} Nf6
{[%clk 00:15:07]} {[%emt 00:00:07]} 5. Nf3 {[%clk 00:15:11]} {[%emt 00:00:04]}
Be7 {[%clk 00:15:06]} {[%emt 00:00:06]} 6. Bd3 {[%clk 00:15:14]} {[%emt
00:00:01]} O-O {[%clk 00:15:06]} {[%emt 00:00:05]} 7. O-O {[%clk 00:15:17]}
{[%emt 00:00:02]} Nc6 {[%clk 00:15:07]} {[%emt 00:00:04]} 8. c3 {[%clk
00:15:21]} {[%emt 00:00:01]} Re8 {[%clk 00:14:53]} {[%emt 00:00:19]} 9. Re1
{[%clk 00:15:16]} {[%emt 00:00:10]} Bf8 {[%clk 00:14:47]} {[%emt 00:00:11]} 10.
Bf4 {[%clk 00:15:16]} {[%emt 00:00:05]} Qb6 {[%clk 00:13:38]} {[%emt 00:01:14]}
11. Qc2 {[%clk 00:14:32]} {[%emt 00:00:49]} g6 {[%clk 00:13:12]} {[%emt
00:00:31]} 12. Na3 {[%clk 00:14:31]} {[%emt 00:00:05]} Nh5 {[%clk 00:12:51]}
{[%emt 00:00:26]} 13. Bg5 {[%clk 00:13:49]} {[%emt 00:00:47]} Bg7 {[%clk
00:12:00]} {[%emt 00:00:57]} 14. h3 {[%clk 00:13:19]} {[%emt 00:00:34]} Bd7
{[%clk 00:11:14]} {[%emt 00:00:51]} 15. g4 {[%clk 00:13:04]} {[%emt 00:00:19]}
Nf6 {[%clk 00:11:17]} {[%emt 00:00:02]} 16. Bf4 {[%clk 00:13:08]} {[%emt
00:00:02]} Bf8 {[%clk 00:10:47]} {[%emt 00:00:35]} 17. Bg5 {[%clk 00:12:34]}
{[%emt 00:00:39]} Bg7 {[%clk 00:10:43]} {[%emt 00:00:09]} 18. Qd2 {[%clk
00:12:35]} {[%emt 00:00:04]} a6 {[%clk 00:09:10]} {[%emt 00:01:38]} 19. Nc4
{[%clk 00:12:36]} {[%emt 00:00:04]} Qc7 {[%clk 00:09:14]} 20. Qf4 {[%clk
00:12:14]} {[%emt 00:00:27]} e5 {[%clk 00:07:51]} {[%emt 00:01:28]} 21. dxe5
{[%clk 00:12:17]} {[%emt 00:00:02]} dxe5 {[%clk 00:07:55]} {[%emt 00:00:02]} 22.
Ncxe5 {[%clk 00:12:02]} {[%emt 00:00:20]} Nxe5 {[%clk 00:07:41]} {[%emt
00:00:19]} 23. Nxe5 {[%clk 00:11:35]} {[%emt 00:00:32]} Rxe5 {[%clk 00:05:30]}
{[%emt 00:02:16]} 24. Qxe5 {[%clk 00:11:28]} {[%emt 00:00:13]} Qxe5 {[%clk
00:05:28]} {[%emt 00:00:06]} 25. Rxe5 {[%clk 00:11:31]} {[%emt 00:00:02]} Nxg4
{[%clk 00:04:55]} {[%emt 00:00:39]} 26. Re7 {[%clk 00:10:06]} {[%emt 00:01:30]}
Ne5 {[%clk 00:04:58]} {[%emt 00:00:02]} 27. f4 {[%clk 00:10:10]} {[%emt
00:00:02]} Nxd3 {[%clk 00:05:00]} {[%emt 00:00:03]} 28. Rxd7 {[%clk 00:10:13]}
{[%emt 00:00:02]} Nxb2 {[%clk 00:04:58]} {[%emt 00:00:07]} 29. Rxb7 {[%clk
00:10:15]} {[%emt 00:00:03]} Bxc3 {[%clk 00:04:56]} {[%emt 00:00:07]} 30. Bh6
{[%clk 00:09:15]} {[%emt 00:01:05]} Nd3 {[%clk 00:03:57]} {[%emt 00:01:04]} 31.
Rd1 {[%clk 00:08:56]} {[%emt 00:00:23]} Nc5 {[%clk 00:03:07]} {[%emt 00:00:56]}
32. Rc7 {[%clk 00:08:57]} {[%emt 00:00:04]} Bb4 {[%clk 00:02:47]} {[%emt
00:00:26]} 33. Rc1 {[%clk 00:08:42]} {[%emt 00:00:19]} Ne6 {[%clk 00:02:46]}
{[%emt 00:00:06]} 34. Rc8+ {[%clk 00:08:42]} {[%emt 00:00:05]} Rxc8 {[%clk
00:02:45]} {[%emt 00:00:06]} 35. Rxc8+ {[%clk 00:08:45]} {[%emt 00:00:02]} Nf8
{[%clk 00:02:37]} {[%emt 00:00:13]} 36. Bxf8 {[%clk 00:08:42]} {[%emt
00:00:09]} Bxf8 {[%clk 00:02:40]} {[%emt 00:00:02]} 37. Ra8 {[%clk 00:08:45]}
{[%emt 00:00:02]} a5 {[%clk 00:01:53]} {[%emt 00:00:53]} 38. Rxa5 {[%clk
00:08:46]} {[%emt 00:00:04]} Bd6 {[%clk 00:01:45]} {[%emt 00:00:12]} 39. Ra4
{[%clk 00:08:47]} {[%emt 00:00:05]} 1-0

[Event "13 ème Rapide Isle 2019"]
[Site "Isle, France"]
[Date "????.??.??"]
[Round "6.3"]
[White "Saada, Julien"]
[Black "Budak, Lori"]
[Result "1-0"]
[TimeControl "15'+5''"]
[WhiteElo "2258"]
[BlackElo "1685"]

1. d4 {[%clk 00:15:07]} {[%emt 00:00:02]} Nf6 {[%clk 00:15:03]} {[%emt
00:00:07]} 2. Bg5 {[%clk 00:15:10]} {[%emt 00:00:02]} g6 {[%clk 00:14:52]}
{[%emt 00:00:17]} 3. Bxf6 {[%clk 00:15:12]} {[%emt 00:00:03]} exf6 {[%clk
00:14:55]} 4. e3 {[%clk 00:15:15]} {[%emt 00:00:02]} d5 {[%clk 00:14:48]}
{[%emt 00:00:13]} 5. g3 {[%clk 00:15:06]} {[%emt 00:00:14]} Bg7 {[%clk
00:14:33]} {[%emt 00:00:21]} 6. Bg2 {[%clk 00:15:09]} {[%emt 00:00:02]} O-O
{[%clk 00:14:32]} {[%emt 00:00:05]} 7. Ne2 {[%clk 00:15:11]} {[%emt 00:00:03]}
Nc6 {[%clk 00:14:08]} {[%emt 00:00:29]} 8. O-O {[%clk 00:15:03]} {[%emt
00:00:13]} Ne7 {[%emt 00:00:22]} 9. Nd2 {[%clk 00:14:51]} c6 {[%clk 00:13:51]}
{[%emt 00:00:23]} 10. c4 {[%clk 00:14:52]} {[%emt 00:00:05]} Be6 {[%clk
00:13:40]} {[%emt 00:00:16]} 11. Rc1 {[%clk 00:14:17]} {[%emt 00:00:40]} Qd7
{[%clk 00:11:09]} {[%emt 00:02:37]} 12. Nf4 {[%clk 00:14:13]} {[%emt 00:00:08]}
Rac8 {[%clk 00:10:41]} {[%emt 00:00:33]} 13. b4 {[%clk 00:12:45]} {[%emt
00:01:33]} Rfe8 {[%clk 00:08:14]} {[%emt 00:02:31]} 14. Nb3 {[%clk 00:11:45]}
{[%emt 00:01:05]} b6 {[%clk 00:06:14]} {[%emt 00:02:06]} 15. Nd2 {[%clk
00:11:26]} {[%emt 00:00:23]} Bg4 {[%clk 00:06:03]} {[%emt 00:00:16]} 16. f3
{[%clk 00:11:08]} {[%emt 00:00:23]} Nf5 {[%clk 00:03:45]} {[%emt 00:02:24]} 17.
fxg4 {[%clk 00:10:42]} {[%emt 00:00:31]} Nxe3 {[%clk 00:03:48]} {[%emt
00:00:02]} 18. Qf3 {[%clk 00:10:31]} {[%emt 00:00:14]} Nxf1 {[%clk 00:03:41]}
{[%emt 00:00:14]} 19. Rxf1 {[%clk 00:10:29]} {[%emt 00:00:07]} dxc4 {[%clk
00:03:38]} {[%emt 00:00:09]} 20. d5 {[%clk 00:09:59]} {[%emt 00:00:35]} c3
{[%clk 00:01:56]} {[%emt 00:01:46]} 21. Qxc3 {[%clk 00:09:37]} {[%emt
00:00:26]} cxd5 {[%clk 00:01:58]} {[%emt 00:00:04]} 22. Qd3 {[%clk 00:09:39]}
{[%emt 00:00:02]} Qxg4 {[%clk 00:01:17]} {[%emt 00:00:46]} 23. Nxd5 {[%clk
00:09:32]} {[%emt 00:00:13]} Qe6 {[%clk 00:00:53]} {[%emt 00:00:30]} 24. Ne4
{[%clk 00:08:30]} {[%emt 00:01:06]} f5 {[%clk 00:00:46]} {[%emt 00:00:13]} 25.
Ng5 {[%clk 00:08:32]} {[%emt 00:00:02]} Qe5 {[%clk 00:00:35]} {[%emt 00:00:17]}
26. Nf3 {[%clk 00:07:39]} {[%emt 00:00:57]} Qb2 {[%clk 00:00:37]} {[%emt
00:00:04]} 27. Rf2 {[%clk 00:06:52]} {[%emt 00:00:52]} Qc1+ {[%clk 00:00:29]}
{[%emt 00:00:14]} 28. Bf1 {[%clk 00:06:55]} {[%emt 00:00:02]} Kh8 {[%clk
00:00:20]} {[%emt 00:00:14]} 29. Rd2 {[%clk 00:06:20]} {[%emt 00:00:39]} Rcd8
{[%clk 00:00:21]} {[%emt 00:00:05]} 30. Ng5 {[%clk 00:06:02]} {[%emt 00:00:22]}
Rd7 {[%clk 00:00:17]} {[%emt 00:00:09]} 31. Nf6 {[%clk 00:05:07]} {[%emt
00:01:00]} Rxd3 {[%clk 00:00:12]} {[%emt 00:00:10]} 32. Nxf7# {[%clk 00:05:09]}
{[%emt 00:00:02]} 1-0

[Event "13 ème Rapide Isle 2019"]
[Site "Isle, France"]
[Date "????.??.??"]
[Round "6.4"]
[White "Saucey, Michel"]
[Black "Budak, Rezan"]
[Result "1/2-1/2"]
[TimeControl "15'+5''"]
[WhiteElo "2243"]
[BlackElo "1890"]

1. d4 {[%clk 00:15:09]} d5 {[%clk 00:15:08]} {[%emt 00:00:02]} 2. Nf3 {[%clk
00:15:03]} {[%emt 00:00:12]} Nf6 {[%clk 00:15:11]} {[%emt 00:00:01]} 3. Bf4
{[%clk 00:15:06]} {[%emt 00:00:02]} Bg4 {[%clk 00:14:49]} {[%emt 00:00:27]} 4.
Ne5 {[%clk 00:14:54]} {[%emt 00:00:16]} Bh5 {[%clk 00:14:40]} {[%emt 00:00:15]}
5. c4 {[%clk 00:14:26]} {[%emt 00:00:33]} e6 {[%clk 00:14:13]} {[%emt
00:00:31]} 6. Nc3 {[%clk 00:13:47]} {[%emt 00:00:45]} Nbd7 {[%clk 00:11:21]}
{[%emt 00:02:57]} 7. g4 {[%clk 00:10:42]} {[%emt 00:03:10]} Nxe5 {[%clk
00:10:36]} {[%emt 00:00:51]} 8. dxe5 {[%clk 00:10:45]} {[%emt 00:00:02]} Nxg4
{[%emt 00:00:14]} 9. cxd5 {[%clk 00:10:12]} {[%emt 00:00:27]} exd5 {[%clk
00:10:31]} {[%emt 00:00:13]} 10. Qxd5 {[%clk 00:09:44]} {[%emt 00:00:32]} Qxd5
{[%clk 00:10:34]} {[%emt 00:00:03]} 11. Nxd5 {[%clk 00:09:48]} O-O-O {[%clk
00:10:36]} {[%emt 00:00:03]} 12. Bg2 {[%clk 00:09:09]} {[%emt 00:00:44]} c6
{[%clk 00:08:45]} {[%emt 00:01:57]} 13. Rc1 {[%clk 00:08:19]} {[%emt 00:00:54]}
Kd7 {[%clk 00:07:49]} {[%emt 00:01:02]} 14. f3 {[%clk 00:07:12]} {[%emt
00:01:12]} cxd5 {[%clk 00:07:41]} {[%emt 00:00:13]} 15. fxg4 {[%clk 00:07:15]}
Bxg4 {[%clk 00:07:06]} {[%emt 00:00:41]} 16. Bxd5 {[%clk 00:06:51]} {[%emt
00:00:29]} Bb4+ {[%clk 00:07:09]} {[%emt 00:00:01]} 17. Kf2 {[%clk 00:06:52]}
{[%emt 00:00:03]} b6 {[%clk 00:06:45]} {[%emt 00:00:31]} 18. Rhd1 {[%clk
00:05:56]} {[%emt 00:01:00]} Ke7 {[%clk 00:06:36]} {[%emt 00:00:15]} 19. Rc7+
{[%clk 00:05:38]} {[%emt 00:00:22]} Rd7 {[%clk 00:06:40]} 20. Rxd7+ {[%clk
00:03:23]} {[%emt 00:02:22]} Bxd7 {[%clk 00:06:43]} {[%emt 00:00:02]} 21. e3
{[%clk 00:01:39]} {[%emt 00:01:49]} Bc5 {[%clk 00:06:25]} {[%emt 00:00:23]} 22.
Bg5+ {[%clk 00:01:14]} {[%emt 00:00:29]} f6 {[%clk 00:06:22]} {[%emt 00:00:08]}
23. exf6+ {[%clk 00:01:10]} {[%emt 00:00:09]} gxf6 {[%clk 00:06:26]} {[%emt
00:00:01]} 24. Bh4 {[%clk 00:01:06]} {[%emt 00:00:08]} Be6 {[%clk 00:06:09]}
{[%emt 00:00:23]} 25. Bxe6 {[%clk 00:01:03]} {[%emt 00:00:08]} Kxe6 {[%clk
00:06:13]} {[%emt 00:00:01]} 26. Kf3 {[%clk 00:01:06]} {[%emt 00:00:01]} Rg8
{[%clk 00:05:39]} {[%emt 00:00:39]} 27. b3 {[%clk 00:01:00]} {[%emt 00:00:12]}
Bd6 {[%clk 00:05:37]} {[%emt 00:00:08]} 28. Bg3 {[%clk 00:00:52]} {[%emt
00:00:12]} Bxg3 {[%clk 00:04:40]} {[%emt 00:01:02]} 29. hxg3 {[%clk 00:00:56]}
Rc8 {[%clk 00:04:44]} {[%emt 00:00:01]} 30. Rd2 {[%clk 00:00:57]} {[%emt
00:00:04]} Rc7 {[%clk 00:04:40]} {[%emt 00:00:09]} 31. Rh2 {[%clk 00:00:59]}
{[%emt 00:00:03]} Kf5 {[%clk 00:04:32]} {[%emt 00:00:14]} 32. g4+ {[%clk
00:01:01]} {[%emt 00:00:03]} Ke5 {[%clk 00:04:32]} {[%emt 00:00:05]} 33. Rh5+
{[%clk 00:00:48]} {[%emt 00:00:19]} Ke6 {[%clk 00:04:32]} {[%emt 00:00:05]} 34.
Rh6 {[%clk 00:00:44]} {[%emt 00:00:08]} Ke5 {[%clk 00:04:36]} 35. Rh5+ {[%clk
00:00:44]} {[%emt 00:00:07]} Ke6 {[%clk 00:04:39]} {[%emt 00:00:03]} 36. Rh2
{[%clk 00:00:47]} {[%emt 00:00:02]} a5 {[%clk 00:04:10]} {[%emt 00:00:35]} 37.
Kf4 {[%clk 00:00:43]} {[%emt 00:00:08]} a4 {[%clk 00:01:39]} {[%emt 00:02:36]}
38. bxa4 {[%clk 00:00:43]} {[%emt 00:00:05]} Rc4+ {[%clk 00:01:43]} 39. e4
{[%clk 00:00:42]} {[%emt 00:00:06]} Rxa4 {[%clk 00:01:48]} 40. Rb2 {[%clk
00:00:26]} {[%emt 00:00:21]} Ra6 {[%clk 00:01:43]} {[%emt 00:00:09]} 41. Rc2
{[%clk 00:00:11]} {[%emt 00:00:20]} b5 {[%clk 00:01:43]} {[%emt 00:00:05]} 42.
Rb2 {[%clk 00:00:12]} {[%emt 00:00:03]} Ra5 {[%clk 00:01:35]} {[%emt 00:00:14]}
43. Rh2 {[%clk 00:00:14]} {[%emt 00:00:02]} b4 {[%clk 00:00:41]} {[%emt
00:00:59]} 44. Rh6 {[%clk 00:00:06]} {[%emt 00:00:14]} Rxa2 {[%clk 00:00:18]}
{[%emt 00:00:28]} 45. g5 {[%clk 00:00:10]} Rf2+ {[%clk 00:00:08]} {[%emt
00:00:14]} 46. Ke3 {[%clk 00:00:14]} Rf1 {[%clk 00:00:11]} {[%emt 00:00:02]} 47.
gxf6 {[%clk 00:00:15]} {[%emt 00:00:04]} Ke5 {[%clk 00:00:12]} {[%emt
00:00:04]} 48. Rxh7 {[%clk 00:00:13]} {[%emt 00:00:07]} b3 {[%clk 00:00:06]}
{[%emt 00:00:11]} 49. Rb7 {[%clk 00:00:17]} Ke6 {[%clk 00:00:09]} {[%emt
00:00:03]} 50. Rb6+ {[%clk 00:00:21]} Ke5 {[%clk 00:00:12]} {[%emt 00:00:02]}
51. Kd3 {[%clk 00:00:25]} Rf3+ {[%clk 00:00:07]} {[%emt 00:00:09]} 52. Kd2
{[%clk 00:00:28]} {[%emt 00:00:02]} Rxf6 {[%clk 00:00:10]} {[%emt 00:00:02]} 53.
Rxf6 {[%clk 00:00:31]} {[%emt 00:00:01]} Kxf6 {[%clk 00:00:14]} {[%emt
00:00:02]} 54. Kc3 {[%clk 00:00:36]} Ke5 {[%clk 00:00:18]} 55. Kxb3 {[%clk
00:00:23]} {[%emt 00:00:01]} Kxe4 {[%clk 00:00:18]} 1/2-1/2